[Event "*** SCC Grand Prix: Titled Tuesday Blitz"]
[Site "Chess.com"]
[Date "2020.08.11"]
[Round "10"]
[White "Valeron87"]
[Black "SzMM19"]
[Result "1-0"]
[WhiteElo "2352"]
[BlackElo "2451"]
[TimeControl "180+1"]
[EndTime "11:58:00 PDT"]
[Termination "Valeron87 won by checkmate"]

1. e4 {[%clk 0:03:00.9]} 1... c5 {[%clk 0:02:57.3]} 2. Nf3 {[%clk 0:03:01.3]}
2... a6 {[%clk 0:02:56.8]} 3. c3 {[%clk 0:02:56.2]} 3... e6 {[%clk 0:02:50.8]}
4. d4 {[%clk 0:02:54.1]} 4... d5 {[%clk 0:02:51.7]} 5. exd5 {[%clk 0:02:38.1]}
5... exd5 {[%clk 0:02:52.6]} 6. Bg5 {[%clk 0:02:14.5]} 6... Be7 {[%clk
0:02:25.3]} 7. Bxe7 {[%clk 0:02:14.1]} 7... Qxe7+ {[%clk 0:02:26.2]} 8. Be2
{[%clk 0:02:14.6]} 8... Nf6 {[%clk 0:02:19.7]} 9. dxc5 {[%clk 0:02:13]} 9...
Qxc5 {[%clk 0:02:18.2]} 10. O-O {[%clk 0:02:12.8]} 10... O-O {[%clk 0:02:17.7]}
11. Nbd2 {[%clk 0:02:12.7]} 11... Nc6 {[%clk 0:02:17.7]} 12. Nb3 {[%clk
0:02:12]} 12... Qd6 {[%clk 0:02:17.7]} 13. Nbd4 {[%clk 0:02:11]} 13... Bg4
{[%clk 0:02:17.3]} 14. h3 {[%clk 0:01:59]} 14... Bxf3 {[%clk 0:02:16.4]} 15.
Bxf3 {[%clk 0:01:58.4]} 15... Nxd4 {[%clk 0:02:16.3]} 16. Qxd4 {[%clk
0:01:57.9]} 16... Rad8 {[%clk 0:02:16.9]} 17. Rfe1 {[%clk 0:01:57.3]} 17... Rfe8
{[%clk 0:02:14.6]} 18. Rxe8+ {[%clk 0:01:53.1]} 18... Nxe8 {[%clk 0:02:12.2]}
19. Rd1 {[%clk 0:01:51.9]} 19... Nf6 {[%clk 0:01:26.3]} 20. c4 {[%clk
0:01:50.9]} 20... Re8 {[%clk 0:01:08.8]} 21. Bxd5 {[%clk 0:01:35.6]} 21... Qc7
{[%clk 0:00:57]} 22. g3 {[%clk 0:01:23.3]} 22... h6 {[%clk 0:00:56.6]} 23. Bf3
{[%clk 0:01:21.4]} 23... b5 {[%clk 0:00:53.9]} 24. c5 {[%clk 0:01:16.4]} 24...
a5 {[%clk 0:00:40.1]} 25. c6 {[%clk 0:00:56.8]} 25... b4 {[%clk 0:00:25.9]} 26.
Kg2 {[%clk 0:00:50.5]} 26... Rc8 {[%clk 0:00:19.9]} 27. a3 {[%clk 0:00:49.8]}
27... bxa3 {[%clk 0:00:19.8]} 28. bxa3 {[%clk 0:00:50.1]} 28... h5 {[%clk
0:00:18.8]} 29. Rb1 {[%clk 0:00:46.6]} 29... Rd8 {[%clk 0:00:11.7]} 30. Qc5
{[%clk 0:00:40.5]} 30... h4 {[%clk 0:00:05.3]} 31. Rb7 {[%clk 0:00:38.8]} 31...
Qc8 {[%clk 0:00:05.7]} 32. c7 {[%clk 0:00:38.1]} 32... Rf8 {[%clk 0:00:02.6]}
33. Rb8 {[%clk 0:00:33.6]} 33... Qe6 {[%clk 0:00:02.5]} 34. Rxf8+ {[%clk
0:00:32.2]} 34... Kh7 {[%clk 0:00:03.4]} 35. c8=Q {[%clk 0:00:31.5]} 35... hxg3
{[%clk 0:00:03]} 36. Rh8+ {[%clk 0:00:29.5]} 36... Kg6 {[%clk 0:00:02.5]} 37.
Bh5+ {[%clk 0:00:29.9]} 37... Nxh5 {[%clk 0:00:01.9]} 38. Qxh5+ {[%clk
0:00:29.8]} 38... Kf6 {[%clk 0:00:02.8]} 39. Qd8+ {[%clk 0:00:27.3]} 39... Qe7
{[%clk 0:00:02.9]} 40. Qh4+ {[%clk 0:00:26.1]} 40... g5 {[%clk 0:00:03.8]} 41.
Qhd4+ {[%clk 0:00:24.6]} 41... Kf5 {[%clk 0:00:04.7]} 42. Qxe7 {[%clk
0:00:22.9]} 42... f6 {[%clk 0:00:05.6]} 43. Qexf6# {[%clk 0:00:22.5]} 1-0

[Event "*** SCC Grand Prix: Titled Tuesday Blitz"]
[Site "Chess.com"]
[Date "2020.08.11"]
[Round "10"]
[White "TimofeevAr"]
[Black "UmbertoConcelli"]
[Result "1-0"]
[WhiteElo "2848"]
[BlackElo "2705"]
[TimeControl "180+1"]
[EndTime "11:58:02 PDT"]
[Termination "TimofeevAr won by resignation"]

1. e4 {[%clk 0:03:00.9]} 1... c5 {[%clk 0:02:59.9]} 2. Nf3 {[%clk 0:03:00.5]}
2... d6 {[%clk 0:03:00.3]} 3. d4 {[%clk 0:03:00.5]} 3... cxd4 {[%clk 0:03:01.2]}
4. Nxd4 {[%clk 0:03:01]} 4... Nf6 {[%clk 0:03:01.7]} 5. Nc3 {[%clk 0:03:01.5]}
5... Nc6 {[%clk 0:03:02.2]} 6. Bg5 {[%clk 0:03:00.9]} 6... e6 {[%clk 0:03:02.1]}
7. Qd2 {[%clk 0:03:01]} 7... Be7 {[%clk 0:03:01.3]} 8. O-O-O {[%clk 0:03:00.3]}
8... a6 {[%clk 0:03:01.4]} 9. f3 {[%clk 0:02:53.8]} 9... Bd7 {[%clk 0:02:49.3]}
10. h4 {[%clk 0:02:51.9]} 10... h5 {[%clk 0:02:43.5]} 11. Kb1 {[%clk 0:02:50.7]}
11... Qc7 {[%clk 0:02:38.9]} 12. Be2 {[%clk 0:02:43]} 12... b5 {[%clk
0:02:29.1]} 13. Nxc6 {[%clk 0:02:42.9]} 13... Bxc6 {[%clk 0:02:28]} 14. Bd3
{[%clk 0:02:43.2]} 14... b4 {[%clk 0:02:16.4]} 15. Ne2 {[%clk 0:02:43]} 15... a5
{[%clk 0:02:16.8]} 16. Nd4 {[%clk 0:02:42.6]} 16... Bd7 {[%clk 0:02:17]} 17. f4
{[%clk 0:02:38.5]} 17... O-O {[%clk 0:02:10]} 18. Rhe1 {[%clk 0:02:33.7]} 18...
e5 {[%clk 0:01:54.3]} 19. Nf5 {[%clk 0:02:17.8]} 19... Bxf5 {[%clk 0:01:53.8]}
20. exf5 {[%clk 0:02:18.2]} 20... a4 {[%clk 0:01:44.3]} 21. Qxb4 {[%clk
0:01:56.2]} 21... d5 {[%clk 0:01:43.8]} 22. Qd2 {[%clk 0:01:53.3]} 22... e4
{[%clk 0:01:43.9]} 23. Be2 {[%clk 0:01:53.5]} 23... Rab8 {[%clk 0:01:40.6]} 24.
Ka1 {[%clk 0:01:47.7]} 24... a3 {[%clk 0:01:24.2]} 25. bxa3 {[%clk 0:01:44.6]}
25... Bxa3 {[%clk 0:01:20]} 26. Rb1 {[%clk 0:01:44.8]} 26... Bc5 {[%clk
0:00:59.5]} 27. Bxf6 {[%clk 0:01:30.8]} 27... gxf6 {[%clk 0:00:58.8]} 28. Bb5
{[%clk 0:01:30.9]} 28... Qa7 {[%clk 0:00:49.4]} 29. Rb3 {[%clk 0:01:26.2]} 29...
Ra8 {[%clk 0:00:33.2]} 30. a4 {[%clk 0:01:22.4]} 30... Bd4+ {[%clk 0:00:27.1]}
31. Kb1 {[%clk 0:01:20.2]} 31... Qc5 {[%clk 0:00:23.7]} 32. Rd1 {[%clk
0:01:18.7]} 32... Rfc8 {[%clk 0:00:13.7]} 33. c4 {[%clk 0:01:10.8]} 33... Bf2
{[%clk 0:00:08.2]} 34. Qxd5 {[%clk 0:01:09.2]} 34... e3 {[%clk 0:00:08.4]} 35.
Qxc5 {[%clk 0:00:56.8]} 35... Rxc5 {[%clk 0:00:09.3]} 36. Rb2 {[%clk 0:00:57.3]}
36... Rxf5 {[%clk 0:00:09.2]} 37. g3 {[%clk 0:00:56.3]} 37... Kf8 {[%clk
0:00:07.8]} 38. Re2 {[%clk 0:00:55.8]} 38... Rc5 {[%clk 0:00:04.4]} 39. Kc2
{[%clk 0:00:54.2]} 39... f5 {[%clk 0:00:02.6]} 40. Rd5 {[%clk 0:00:47.9]} 40...
Rxd5 {[%clk 0:00:01.6]} 41. cxd5 {[%clk 0:00:48.3]} 41... Ke7 {[%clk 0:00:02.5]}
42. Bc6 {[%clk 0:00:45.4]} 42... Ra5 {[%clk 0:00:02.1]} 43. Kd3 {[%clk
0:00:44.9]} 43... Kd6 {[%clk 0:00:03]} 44. Rb2 {[%clk 0:00:43.2]} 44... Rc5
{[%clk 0:00:02.8]} 45. Ra2 {[%clk 0:00:40.3]} 45... Rc1 {[%clk 0:00:02.7]} 46.
a5 {[%clk 0:00:40]} 46... Rd1+ {[%clk 0:00:02.2]} 47. Ke2 {[%clk 0:00:40.2]}
47... Rd2+ {[%clk 0:00:02.2]} 48. Rxd2 {[%clk 0:00:39.8]} 48... exd2 {[%clk
0:00:03.1]} 49. a6 {[%clk 0:00:38.8]} 49... Bxg3 {[%clk 0:00:04]} 50. a7 {[%clk
0:00:38.4]} 1-0

[Event "*** SCC Grand Prix: Titled Tuesday Blitz"]
[Site "Chess.com"]
[Date "2020.08.11"]
[Round "10"]
[White "dopolian"]
[Black "XiaoKangZhong"]
[Result "1/2-1/2"]
[WhiteElo "2534"]
[BlackElo "2429"]
[TimeControl "180+1"]
[EndTime "11:58:05 PDT"]
[Termination "Game drawn by repetition"]

1. Nf3 {[%clk 0:03:00.9]} 1... Nf6 {[%clk 0:02:58.8]} 2. c4 {[%clk 0:03:00.9]}
2... g6 {[%clk 0:02:54.8]} 3. b3 {[%clk 0:03:01]} 3... Bg7 {[%clk 0:02:52]} 4.
Bb2 {[%clk 0:03:01.2]} 4... O-O {[%clk 0:02:52.6]} 5. g3 {[%clk 0:03:00.1]} 5...
d5 {[%clk 0:02:52.3]} 6. cxd5 {[%clk 0:02:59.1]} 6... Nxd5 {[%clk 0:02:53.2]} 7.
Bxg7 {[%clk 0:02:59]} 7... Kxg7 {[%clk 0:02:54.1]} 8. Bg2 {[%clk 0:02:58.3]}
8... c5 {[%clk 0:02:49]} 9. O-O {[%clk 0:02:57.9]} 9... Nc6 {[%clk 0:02:48.9]}
10. d4 {[%clk 0:02:54.9]} 10... cxd4 {[%clk 0:02:44]} 11. Nxd4 {[%clk
0:02:55.8]} 11... Kg8 {[%clk 0:02:43.7]} 12. Nxc6 {[%clk 0:02:46.6]} 12... bxc6
{[%clk 0:02:43.3]} 13. e4 {[%clk 0:02:46.7]} 13... Nb4 {[%clk 0:02:32]} 14. Nc3
{[%clk 0:02:39.4]} 14... Ba6 {[%clk 0:02:29.6]} 15. Qxd8 {[%clk 0:02:37.6]}
15... Raxd8 {[%clk 0:02:25]} 16. Rfd1 {[%clk 0:02:38.1]} 16... e5 {[%clk
0:02:13.5]} 17. Bf1 {[%clk 0:02:26.6]} 17... Bxf1 {[%clk 0:02:10.5]} 18. Kxf1
{[%clk 0:02:27.5]} 18... Rd4 {[%clk 0:02:08.5]} 19. a3 {[%clk 0:02:14.9]} 19...
Nc2 {[%clk 0:02:07]} 20. Ra2 {[%clk 0:02:02.7]} 20... Rxd1+ {[%clk 0:02:06.3]}
21. Nxd1 {[%clk 0:02:02.6]} 21... Nd4 {[%clk 0:02:07.2]} 22. b4 {[%clk
0:01:58.7]} 22... a5 {[%clk 0:02:04]} 23. Ne3 {[%clk 0:01:38]} 23... axb4 {[%clk
0:01:52.8]} 24. axb4 {[%clk 0:01:38.9]} 24... Rb8 {[%clk 0:01:52.9]} 25. Ra4
{[%clk 0:01:10.5]} 25... h5 {[%clk 0:01:34.6]} 26. h4 {[%clk 0:01:07.3]} 26...
Rb5 {[%clk 0:01:29]} 27. Kg2 {[%clk 0:00:54.8]} 27... Ne6 {[%clk 0:01:15.7]} 28.
Nc2 {[%clk 0:00:45.7]} 28... c5 {[%clk 0:01:09.3]} 29. bxc5 {[%clk 0:00:44.5]}
29... Rxc5 {[%clk 0:01:09.1]} 30. Ne3 {[%clk 0:00:43.6]} 30... Nd4 {[%clk
0:01:06.8]} 31. Rc4 {[%clk 0:00:40.9]} 31... Rxc4 {[%clk 0:01:03.3]} 32. Nxc4
{[%clk 0:00:40.9]} 32... f6 {[%clk 0:01:01.4]} 33. Kf1 {[%clk 0:00:32.8]} 33...
Kf7 {[%clk 0:01:00.7]} 34. Ke1 {[%clk 0:00:31.7]} 34... Ke6 {[%clk 0:00:59.6]}
35. Kd2 {[%clk 0:00:32]} 35... f5 {[%clk 0:00:59.8]} 36. exf5+ {[%clk
0:00:31.2]} 36... gxf5 {[%clk 0:01:00.7]} 37. Ke3 {[%clk 0:00:29.8]} 37... Nc6
{[%clk 0:00:57.7]} 38. Nd2 {[%clk 0:00:27.6]} 38... Ne7 {[%clk 0:00:57.4]} 39.
Nf3 {[%clk 0:00:26.8]} 39... Nd5+ {[%clk 0:00:54.5]} 40. Ke2 {[%clk 0:00:23.6]}
40... Kf6 {[%clk 0:00:47.5]} 41. Nd2 {[%clk 0:00:22.7]} 41... f4 {[%clk
0:00:45.8]} 42. Kf3 {[%clk 0:00:22]} 42... Kf5 {[%clk 0:00:45.5]} 43. Ne4 {[%clk
0:00:19.6]} 43... Ne7 {[%clk 0:00:41.9]} 44. Nd6+ {[%clk 0:00:17.2]} 44... Ke6
{[%clk 0:00:42]} 45. Ne4 {[%clk 0:00:17.3]} 45... Kf5 {[%clk 0:00:40.5]} 46.
Nd6+ {[%clk 0:00:09.2]} 46... Ke6 {[%clk 0:00:40.6]} 47. Ne8 {[%clk 0:00:09.5]}
47... Kf7 {[%clk 0:00:29.4]} 48. Nc7 {[%clk 0:00:07.4]} 48... Ng6 {[%clk
0:00:28.3]} 49. Nd5 {[%clk 0:00:06.5]} 49... Ke6 {[%clk 0:00:28.3]} 50. Nc3
{[%clk 0:00:06.1]} 50... Kf5 {[%clk 0:00:27.8]} 51. Ne4 {[%clk 0:00:05.8]} 51...
Ne7 {[%clk 0:00:23.4]} 1/2-1/2

[Event "*** SCC Grand Prix: Titled Tuesday Blitz"]
[Site "Chess.com"]
[Date "2020.08.11"]
[Round "10"]
[White "PowerThinking2650"]
[Black "okriak"]
[Result "0-1"]
[WhiteElo "2438"]
[BlackElo "2733"]
[TimeControl "180+1"]
[EndTime "11:58:06 PDT"]
[Termination "okriak won on time"]

1. e4 {[%clk 0:03:00.9]} 1... e6 {[%clk 0:02:57.1]} 2. d4 {[%clk 0:03:00.4]}
2... d5 {[%clk 0:02:56.9]} 3. Nd2 {[%clk 0:03:00.6]} 3... Be7 {[%clk 0:02:56.5]}
4. Ngf3 {[%clk 0:02:57.9]} 4... Nf6 {[%clk 0:02:55.9]} 5. e5 {[%clk 0:02:58]}
5... Nfd7 {[%clk 0:02:55.5]} 6. Bd3 {[%clk 0:02:57.1]} 6... c5 {[%clk
0:02:55.2]} 7. c3 {[%clk 0:02:57.3]} 7... Nc6 {[%clk 0:02:55.6]} 8. O-O {[%clk
0:02:56.5]} 8... g5 {[%clk 0:02:55.7]} 9. dxc5 {[%clk 0:02:46.2]} 9... g4 {[%clk
0:02:55.5]} 10. Nd4 {[%clk 0:02:44]} 10... Ndxe5 {[%clk 0:02:55.5]} 11. Bb5
{[%clk 0:02:42]} 11... Bd7 {[%clk 0:02:55.1]} 12. b4 {[%clk 0:02:22.8]} 12... h5
{[%clk 0:02:48.5]} 13. Re1 {[%clk 0:02:20.9]} 13... Qc7 {[%clk 0:02:43.5]} 14.
N2b3 {[%clk 0:02:11.3]} 14... O-O-O {[%clk 0:02:17.5]} 15. Bf1 {[%clk
0:01:49.2]} 15... Ng6 {[%clk 0:02:10.2]} 16. b5 {[%clk 0:01:26]} 16... Nce5
{[%clk 0:02:05.3]} 17. c6 {[%clk 0:01:24.6]} 17... bxc6 {[%clk 0:02:01.9]} 18.
bxc6 {[%clk 0:01:23.9]} 18... Bxc6 {[%clk 0:02:00.3]} 19. Nxc6 {[%clk
0:01:19.1]} 19... Nxc6 {[%clk 0:02:00]} 20. Rb1 {[%clk 0:01:15.6]} 20... Bd6
{[%clk 0:01:22.1]} 21. Ba6+ {[%clk 0:01:00.9]} 21... Kd7 {[%clk 0:01:19.5]} 22.
Nc5+ {[%clk 0:00:37.9]} 22... Ke8 {[%clk 0:01:18.9]} 23. Nxe6 {[%clk 0:00:33.2]}
23... fxe6 {[%clk 0:01:14.9]} 24. Rxe6+ {[%clk 0:00:20.5]} 24... Nce7 {[%clk
0:01:10.4]} 25. Rb7 {[%clk 0:00:18.3]} 25... Qa5 {[%clk 0:00:38.8]} 26. Bb5+
{[%clk 0:00:17.1]} 26... Kf7 {[%clk 0:00:38.5]} 27. Qe2 {[%clk 0:00:16.5]} 27...
Rb8 {[%clk 0:00:25.3]} 28. Rxg6 {[%clk 0:00:08.6]} 28... Kxg6 {[%clk 0:00:19.7]}
29. Qe6+ {[%clk 0:00:07.4]} 29... Kg7 {[%clk 0:00:18.7]} 30. Rxe7+ {[%clk
0:00:06.7]} 30... Bxe7 {[%clk 0:00:18.7]} 31. Qxe7+ {[%clk 0:00:06.5]} 31... Kg8
{[%clk 0:00:19.1]} 32. Qe6+ {[%clk 0:00:05]} 32... Kg7 {[%clk 0:00:19.4]} 33.
Qe7+ {[%clk 0:00:03.5]} 33... Kg8 {[%clk 0:00:19.8]} 34. Qe6+ {[%clk 0:00:03.3]}
34... Kg7 {[%clk 0:00:20.3]} 35. Qe5+ {[%clk 0:00:03.2]} 35... Kf7 {[%clk
0:00:16]} 36. Qxd5+ {[%clk 0:00:02.7]} 36... Kg7 {[%clk 0:00:15.5]} 37. Qe5+
{[%clk 0:00:02.3]} 37... Kf7 {[%clk 0:00:14.7]} 38. Bc4+ {[%clk 0:00:01.7]}
38... Kg6 {[%clk 0:00:15]} 0-1

[Event "*** SCC Grand Prix: Titled Tuesday Blitz"]
[Site "Chess.com"]
[Date "2020.08.11"]
[Round "10"]
[White "dpopadic"]
[Black "UKR_Master"]
[Result "0-1"]
[WhiteElo "2407"]
[BlackElo "2312"]
[TimeControl "180+1"]
[EndTime "11:58:10 PDT"]
[Termination "UKR_Master won on time"]

1. e4 {[%clk 0:03:00.9]} 1... c5 {[%clk 0:02:59.9]} 2. Nc3 {[%clk 0:03:00.8]}
2... Nc6 {[%clk 0:03:00]} 3. f4 {[%clk 0:03:00.7]} 3... g6 {[%clk 0:02:59.2]} 4.
Nf3 {[%clk 0:03:00.7]} 4... Bg7 {[%clk 0:02:59.4]} 5. Bc4 {[%clk 0:03:00.6]}
5... e6 {[%clk 0:02:59.4]} 6. f5 {[%clk 0:03:00.2]} 6... Nge7 {[%clk 0:02:57.7]}
7. fxe6 {[%clk 0:03:00]} 7... fxe6 {[%clk 0:02:55.4]} 8. d3 {[%clk 0:03:00]}
8... O-O {[%clk 0:02:55.3]} 9. O-O {[%clk 0:02:59.8]} 9... a6 {[%clk 0:02:55.2]}
10. a4 {[%clk 0:02:59]} 10... d5 {[%clk 0:02:48.5]} 11. Bb3 {[%clk 0:02:52.8]}
11... Kh8 {[%clk 0:02:45.3]} 12. Bg5 {[%clk 0:02:51]} 12... Qd6 {[%clk
0:02:40.3]} 13. Qd2 {[%clk 0:02:35.1]} 13... c4 {[%clk 0:02:25.3]} 14. dxc4
{[%clk 0:02:25.3]} 14... Qc5+ {[%clk 0:02:25.2]} 15. Kh1 {[%clk 0:02:14.9]}
15... dxc4 {[%clk 0:02:24.3]} 16. Ba2 {[%clk 0:02:12]} 16... Rd8 {[%clk
0:02:19.3]} 17. Qf4 {[%clk 0:01:57.7]} 17... e5 {[%clk 0:02:06.1]} 18. Qh4
{[%clk 0:01:55.4]} 18... Be6 {[%clk 0:02:02.7]} 19. Rae1 {[%clk 0:01:30.9]}
19... Rf8 {[%clk 0:01:56.7]} 20. Bh6 {[%clk 0:01:11.4]} 20... Bxh6 {[%clk
0:01:43]} 21. Qxh6 {[%clk 0:01:10.5]} 21... Ng8 {[%clk 0:01:41.5]} 22. Qh4
{[%clk 0:01:07]} 22... Rf4 {[%clk 0:01:34.6]} 23. Qg3 {[%clk 0:00:50.7]} 23...
Raf8 {[%clk 0:01:28.1]} 24. Rg1 {[%clk 0:00:49.9]} 24... Bg4 {[%clk 0:01:00.8]}
25. Nd2 {[%clk 0:00:43.8]} 25... b5 {[%clk 0:00:57.7]} 26. axb5 {[%clk
0:00:42.9]} 26... axb5 {[%clk 0:00:58.6]} 27. h3 {[%clk 0:00:35.1]} 27... Be6
{[%clk 0:00:55]} 28. Nf3 {[%clk 0:00:34]} 28... b4 {[%clk 0:00:52.3]} 29. Nd5
{[%clk 0:00:27.8]} 29... Bxd5 {[%clk 0:00:46.2]} 30. exd5 {[%clk 0:00:27.8]}
30... Qxd5 {[%clk 0:00:47.1]} 31. Rd1 {[%clk 0:00:23.4]} 31... Qe4 {[%clk
0:00:43.7]} 32. Rd7 {[%clk 0:00:19.2]} 32... Nf6 {[%clk 0:00:21.7]} 33. Rc7
{[%clk 0:00:12.9]} 33... Nh5 {[%clk 0:00:20.8]} 34. Qe1 {[%clk 0:00:08.4]} 34...
Qd5 {[%clk 0:00:18.8]} 35. Ng5 {[%clk 0:00:05.3]} 35... Nf6 {[%clk 0:00:11.9]}
36. Rxc6 {[%clk 0:00:01.9]} 36... Qxc6 {[%clk 0:00:09.7]} 37. Qxe5 {[%clk
0:00:02.4]} 37... Rf5 {[%clk 0:00:09.4]} 38. Qe3 {[%clk 0:00:02.3]} 38... Re8
{[%clk 0:00:08.7]} 39. Qc1 {[%clk 0:00:01.2]} 39... Qc7 {[%clk 0:00:06.5]} 0-1

[Event "*** SCC Grand Prix: Titled Tuesday Blitz"]
[Site "Chess.com"]
[Date "2020.08.11"]
[Round "10"]
[White "Azatic"]
[Black "Murad_Ibrahimli"]
[Result "0-1"]
[WhiteElo "2550"]
[BlackElo "2707"]
[TimeControl "180+1"]
[EndTime "11:58:12 PDT"]
[Termination "Murad_Ibrahimli won by resignation"]

1. e4 {[%clk 0:03:00.9]} 1... c6 {[%clk 0:02:58.8]} 2. d4 {[%clk 0:03:00.4]}
2... d5 {[%clk 0:02:59]} 3. e5 {[%clk 0:03:00.9]} 3... Bf5 {[%clk 0:02:58.2]} 4.
Nf3 {[%clk 0:03:00.9]} 4... e6 {[%clk 0:02:58.1]} 5. Be2 {[%clk 0:03:00.8]} 5...
c5 {[%clk 0:02:58.3]} 6. O-O {[%clk 0:02:58.8]} 6... Nc6 {[%clk 0:02:57.4]} 7.
Be3 {[%clk 0:02:58.7]} 7... Qb6 {[%clk 0:02:56.1]} 8. Nc3 {[%clk 0:02:58.7]}
8... c4 {[%clk 0:02:42.2]} 9. Qc1 {[%clk 0:02:45.2]} 9... Bb4 {[%clk 0:02:36.4]}
10. a3 {[%clk 0:02:38.9]} 10... Bxc3 {[%clk 0:02:35.7]} 11. bxc3 {[%clk
0:02:39.8]} 11... h6 {[%clk 0:02:31.1]} 12. Nh4 {[%clk 0:02:38.7]} 12... Bh7
{[%clk 0:02:30]} 13. f4 {[%clk 0:02:38.3]} 13... Nge7 {[%clk 0:02:30.4]} 14. Bg4
{[%clk 0:02:14.5]} 14... Nf5 {[%clk 0:02:27.1]} 15. Nxf5 {[%clk 0:02:04.5]}
15... Bxf5 {[%clk 0:02:26]} 16. Bxf5 {[%clk 0:02:03.9]} 16... exf5 {[%clk
0:02:25.4]} 17. g4 {[%clk 0:02:03.9]} 17... Ne7 {[%clk 0:02:22.2]} 18. Rb1
{[%clk 0:01:42.5]} 18... Qc6 {[%clk 0:02:20.5]} 19. Qd2 {[%clk 0:01:34.3]} 19...
b6 {[%clk 0:02:18.2]} 20. Qg2 {[%clk 0:01:32.7]} 20... g6 {[%clk 0:02:15.6]} 21.
h3 {[%clk 0:01:28.9]} 21... h5 {[%clk 0:02:04.4]} 22. g5 {[%clk 0:01:18.5]}
22... Kd7 {[%clk 0:01:52.6]} 23. a4 {[%clk 0:01:06]} 23... Qxa4 {[%clk
0:01:51.9]} 24. Ra1 {[%clk 0:01:05.6]} 24... Qc6 {[%clk 0:01:52]} 25. Bc1 {[%clk
0:01:05.2]} 25... a5 {[%clk 0:01:34.1]} 26. Ba3 {[%clk 0:01:04.9]} 26... Rhb8
{[%clk 0:01:34.3]} 27. Rfe1 {[%clk 0:00:39]} 27... Qe6 {[%clk 0:01:29.5]} 28.
Bd6 {[%clk 0:00:37]} 28... Rb7 {[%clk 0:01:28.8]} 29. Reb1 {[%clk 0:00:36.6]}
29... Nc8 {[%clk 0:01:26.9]} 30. Ba3 {[%clk 0:00:17.9]} 30... Qc6 {[%clk
0:01:25.5]} 31. Re1 {[%clk 0:00:11.9]} 31... Ke6 {[%clk 0:01:25.6]} 32. Qd2
{[%clk 0:00:09.8]} 32... Na7 {[%clk 0:01:19.7]} 33. Reb1 {[%clk 0:00:09]} 33...
Qd7 {[%clk 0:01:18]} 34. Qc1 {[%clk 0:00:08.6]} 34... b5 {[%clk 0:01:17]} 35.
Bc5 {[%clk 0:00:08.5]} 35... Nc6 {[%clk 0:01:17.5]} 36. Rb2 {[%clk 0:00:08.1]}
36... Rab8 {[%clk 0:01:15.5]} 37. Qb1 {[%clk 0:00:07.5]} 37... Qc7 {[%clk
0:00:47.5]} 38. Bd6 {[%clk 0:00:07.4]} 38... Qb6 {[%clk 0:00:47.7]} 39. Bxb8
{[%clk 0:00:07.8]} 39... Rxb8 {[%clk 0:00:48.1]} 40. Kg2 {[%clk 0:00:08.4]}
40... b4 {[%clk 0:00:46.8]} 41. cxb4 {[%clk 0:00:08.3]} 41... axb4 {[%clk
0:00:46.4]} 42. c3 {[%clk 0:00:08]} 42... b3 {[%clk 0:00:46.2]} 43. Ra3 {[%clk
0:00:06.4]} 43... Nxd4 {[%clk 0:00:40]} 44. cxd4 {[%clk 0:00:06.3]} 44... Qxd4
{[%clk 0:00:40.2]} 45. Ra6+ {[%clk 0:00:06.8]} 45... Rb6 {[%clk 0:00:37.8]} 46.
Rxb6+ {[%clk 0:00:06.7]} 46... Qxb6 {[%clk 0:00:38.2]} 47. Qa1 {[%clk
0:00:06.4]} 47... c3 {[%clk 0:00:37.8]} 48. Rf2 {[%clk 0:00:06]} 48... b2 {[%clk
0:00:37.6]} 49. Qb1 {[%clk 0:00:06.5]} 49... Qb4 {[%clk 0:00:35.3]} 50. Kf3
{[%clk 0:00:04.8]} 50... Qe4+ {[%clk 0:00:34.9]} 0-1

[Event "*** SCC Grand Prix: Titled Tuesday Blitz"]
[Site "Chess.com"]
[Date "2020.08.11"]
[Round "10"]
[White "Crazy_girl99"]
[Black "Manukyan_Artak"]
[Result "1/2-1/2"]
[WhiteElo "2490"]
[BlackElo "2358"]
[TimeControl "180+1"]
[EndTime "11:58:13 PDT"]
[Termination "Game drawn by repetition"]

1. e4 {[%clk 0:03:00.9]} 1... c6 {[%clk 0:02:59.9]} 2. d4 {[%clk 0:03:00.5]}
2... d5 {[%clk 0:03:00.8]} 3. e5 {[%clk 0:03:00.5]} 3... Bf5 {[%clk 0:03:00.4]}
4. h4 {[%clk 0:03:00.2]} 4... h5 {[%clk 0:02:59.7]} 5. c4 {[%clk 0:02:59.2]}
5... e6 {[%clk 0:02:59.7]} 6. Nc3 {[%clk 0:02:59.8]} 6... Ne7 {[%clk 0:02:49.8]}
7. Bg5 {[%clk 0:02:58.7]} 7... dxc4 {[%clk 0:02:43.7]} 8. Bxc4 {[%clk
0:02:56.8]} 8... Nd7 {[%clk 0:02:43.8]} 9. Nge2 {[%clk 0:02:55.5]} 9... Nb6
{[%clk 0:02:43.7]} 10. Bd3 {[%clk 0:02:52.2]} 10... Qd7 {[%clk 0:02:39.5]} 11.
Ng3 {[%clk 0:02:35]} 11... Qxd4 {[%clk 0:02:15.2]} 12. Nxf5 {[%clk 0:02:06.6]}
12... Nxf5 {[%clk 0:02:08.8]} 13. O-O {[%clk 0:02:03.3]} 13... Be7 {[%clk
0:01:38]} 14. Bxe7 {[%clk 0:01:17.3]} 14... Nxe7 {[%clk 0:01:29.2]} 15. Nb5
{[%clk 0:00:55.5]} 15... Qxe5 {[%clk 0:01:28.3]} 16. Re1 {[%clk 0:00:52.4]}
16... Qb8 {[%clk 0:01:27.1]} 17. Nd4 {[%clk 0:00:51.8]} 17... Nbd5 {[%clk
0:01:13.6]} 18. Rc1 {[%clk 0:00:40.1]} 18... Qf4 {[%clk 0:01:06.3]} 19. Re4
{[%clk 0:00:23.6]} 19... Qd6 {[%clk 0:00:48.9]} 20. Bb1 {[%clk 0:00:19.2]} 20...
Nf6 {[%clk 0:00:43.9]} 21. Re1 {[%clk 0:00:18.3]} 21... O-O-O {[%clk 0:00:42.9]}
22. Nf3 {[%clk 0:00:09.5]} 22... Qxd1 {[%clk 0:00:41.8]} 23. Rexd1 {[%clk
0:00:10.4]} 23... Rxd1+ {[%clk 0:00:41.7]} 24. Rxd1 {[%clk 0:00:11.3]} 24... Rd8
{[%clk 0:00:41.9]} 25. Re1 {[%clk 0:00:11.9]} 25... Nf5 {[%clk 0:00:36.7]} 26.
g3 {[%clk 0:00:12.2]} 26... Nd4 {[%clk 0:00:30.8]} 27. Ne5 {[%clk 0:00:11.7]}
27... Rf8 {[%clk 0:00:29]} 28. Kg2 {[%clk 0:00:11.9]} 28... Kc7 {[%clk
0:00:24.6]} 29. a3 {[%clk 0:00:12.1]} 29... Nb5 {[%clk 0:00:19]} 30. Bd3 {[%clk
0:00:09.8]} 30... Nd6 {[%clk 0:00:19.1]} 31. b4 {[%clk 0:00:07.1]} 31... Nd7
{[%clk 0:00:18.7]} 32. Nf3 {[%clk 0:00:06.5]} 32... g6 {[%clk 0:00:16.1]} 33.
Rc1 {[%clk 0:00:06.4]} 33... Kd8 {[%clk 0:00:15.2]} 34. a4 {[%clk 0:00:06.5]}
34... Ke7 {[%clk 0:00:15]} 35. a5 {[%clk 0:00:06.3]} 35... a6 {[%clk 0:00:14.8]}
36. Nd4 {[%clk 0:00:05.3]} 36... Rd8 {[%clk 0:00:12.2]} 37. Bf1 {[%clk 0:00:04]}
37... Ne5 {[%clk 0:00:10.7]} 38. Nb3 {[%clk 0:00:04.6]} 38... Nd7 {[%clk
0:00:05]} 39. Nd4 {[%clk 0:00:04.6]} 39... Nb5 {[%clk 0:00:04.7]} 40. Nb3 {[%clk
0:00:04.4]} 40... Nd6 {[%clk 0:00:03.5]} 41. Nd4 {[%clk 0:00:04.3]} 1/2-1/2